Cogmind - Beta 13 @@@ ROGUE MODE // 2024.04.05 @ 09:53:16 Player: hairblade Result: Destroyed by DAS Turret with DAS Cannon Performance ------------- Evolutions (1) 500 Regions Visited (5) 1000 Robots Destroyed (34) 170 Value Destroyed (734) 734 Prototype IDs (0) 0 Alien Tech Used (0) 0 Bonus (0) 0 TOTAL SCORE: 2404 Bonus ------- None Cogmind --------- Core Integrity 0/400 Matter 290/300 Energy 87/100 System Corruption 9% Temperature Cool (0) Movement Hovering (80) Location -9/Exiles Parts ------- > --- POWER (1) -------- (None) > --- PROPULSION (3) --- Combat Airjet > --- UTILITY (3) ------ Medium Storage Unit > --- WEAPON (2) ------- (None) > --- INVENTORY (10) --- Light Ion Engine Light Ion Engine Makeshift Power Source Improved Heat Sink Large Matter Pod (150) Improved Targeting Computer Improved Light Cannon Peak State ------------ > --- POWER ------------ Light Ion Engine > --- PROPULSION ------- Aluminum Leg Aluminum Leg Aluminum Leg > --- UTILITY ---------- Small Storage Unit Structural Scanner Salvage Targeting Computer > --- WEAPON ----------- Improved Light Cannon Grenade Launcher > --- INVENTORY -------- Light Ion Engine Light Ion Engine Improved Heat Sink Medium Storage Unit Large Matter Pod Medium Laser Light Assault Rifle Grenade Launcher [Rating: 12] Favorites ----------- Power Light Ion Engine Engine Light Ion Engine Power Core Light Nuclear Core Propulsion Aluminum Leg Leg Aluminum Leg Hover Unit Combat Airjet Utility Small Storage Unit Device Structural Scanner Storage Small Storage Unit Processor Salvage Targeting Computer Protection Light Armor Plating Weapon Grenade Launcher Energy Gun Medium Laser Ballistic Gun Shotgun Ballistic Cannon Improved Light Cannon Launcher Grenade Launcher Build | -11 -10 -10 -9 -9 -9 ------- Run | Yrd Mat Min Mat Min Exi Slots Evolved 2 | . . . 2 . . Power . | . . . . . . Propulsion 1 | . . . 1 . . Utility 1 | . . . 1 . . Weapon . | . . . . . . Parts Attached 33 | 6 3 5 8 6 5 Power 4 | 1 . 1 1 1 . Engine 3 | 1 . . 1 1 . Core 1 | . . 1 . . . Reactor . | . . . . . . Propulsion 7 | 2 . 2 2 . 1 Treads . | . . . . . . Leg 6 | 2 . 2 2 . . Wheel . | . . . . . . Hover 1 | . . . . . 1 Flight . | . . . . . . Utility 6 | 1 1 . 3 1 . Device 2 | . 1 . 1 . . Storage 2 | 1 . . 1 . . Processor 1 | . . . 1 . . Hackware . | . . . . . . Protection 1 | . . . . 1 . Artifact . | . . . . . . Weapon 16 | 2 2 2 2 4 4 Energy Gun 4 | 1 2 . . 1 . Energy Cannon . | . . . . . . Ballistic Gun 5 | 1 . . . 2 2 Ballistic Cannon 1 | . . . 1 . . Launcher 6 | . . 2 1 1 2 Special Weapon . | . . . . . . Impact Weapon . | . . . . . . Slashing Weapon . | . . . . . . Piercing Weapon . | . . . . . . Special Melee Weapon . | . . . . . . Unidentified Prototypes . | . . . . . . Parts Lost 19 | . . 4 4 1 10 Power 3 | . . 1 1 . 1 Propulsion 6 | . . 2 1 1 2 Utility 3 | . . . 1 . 2 Weapon 7 | . . 1 1 . 5 Highest Loss Streak 10 | . . 2 3 1 10 To Critical Strikes 1 | . . . . . 1 Average Slot Usage (%) 90 | . 89 98 88 87 82 Engine 8 | . 14 2 8 11 10 Core 3 | . . 11 2 . . Leg 25 | . 28 27 29 22 20 Device 10 | . 4 14 11 11 10 Storage 12 | . 14 14 11 11 11 Protection 3 | . . . . 10 10 Energy Gun 7 | . 14 14 . . . Ballistic Gun 9 | . 14 4 . 13 20 Ballistic Cannon 1 | . . . 10 . . Launcher 6 | . . 9 10 7 . Naked Turns . | . . . . . . Heaviest Build 23 | 14 15 16 21 23 23 Greatest Support 30 | 20 20 20 30 30 20 Greatest Overweight (x) 1 | 1 . 1 . 1 1 Average Overweight (x) . | . . . . . . Largest Inventory Capacity 10 | 8 8 8 10 10 10 Average Capacity 8 | 7 8 8 8 10 10 Most Carried 10 | 6 7 8 8 10 10 Average Carried 7 | 2 4 7 7 8 9 Final Capacity 10 | 8 8 8 10 10 10 Final Carried 10 | 2 7 8 6 10 7 Class Distribution -------------------- 55% | Mutant 44% | Scavenger-Mutant Dominant Class ---------------- Mutant | -10/Materials Mutant | -10/Mines Scavenger-Mutant | -9/Materials Scavenger-Mutant | -9/Mines Scavenger-Mutant | -9/Exiles Resources | -11 -10 -10 -9 -9 -9 ----------- Run | Yrd Mat Min Mat Min Exi Matter Collected 1061 | 220 147 239 220 205 30 Remotely . | . . . . . . Salvage Created 666 | . 171 214 139 142 . Parts 51 | . 11 16 17 7 . Haulers Intercepted . | . . . . . . Recyclers Shooed 5 | . 5 . . . . Parts Field Recycled . | . . . . . . Retrieved Matter . | . . . . . . Parts Self-Destructed . | . . . . . . Prevented . | . . . . . . Kills | -11 -10 -10 -9 -9 -9 ------- Run | Yrd Mat Min Mat Min Exi Combat Hostiles Destroyed 25 | . 5 9 8 3 . Guns 12 | . 5 7 . . . Cannons 4 | . . . 3 1 . AOE 9 | . . 2 5 2 . Classes Destroyed 9 | . 3 . 4 2 . Worker 4 | . . . 2 2 . Builder 1 | . . . 1 . . Recycler 1 | . . . . 1 . Mechanic 1 | . . . 1 . . Watcher 2 | . 2 . . . . Swarmer 13 | . 3 6 4 . . Grunt 9 | . 2 3 3 1 . Brawler 1 | . . . 1 . . Sentry 2 | . . . . 2 . Best Kill Streak 4 | . 4 3 4 4 . Combat Bots Only 4 | . 3 3 4 2 . Max Kills in Single Turn 3 | . 1 2 3 3 . Gunslinging . | . . . . . . Exploded 3 | . . 1 3 1 . Melee . | . . . . . . Uniques/NPCs Destroyed . | . . . . . . Combat | -11 -10 -10 -9 -9 -9 -------- Run | Yrd Mat Min Mat Min Exi Hostile Shots Fired 185 | . 22 49 25 18 71 Missed 49 | . 5 13 5 7 19 Damage Taken 2249 | . 219 435 387 210 998 Core 551 | . 16 124 78 37 296 Absorbed by Shields . | . . . . . . Core Remaining (%) 72 | 100 . 44 . . . Volleys Fired 79 | . 32 24 14 6 3 Largest 2 | . 2 2 2 2 2 Hottest 80 | . 70 80 69 69 53 Shots Fired 150 | . 59 45 26 14 6 Gun 111 | . 59 43 . 4 5 Cannon 18 | . . . 14 4 . Launcher 21 | . . 2 12 6 1 Special . | . . . . . . Kinetic 73 | . 27 19 14 8 5 Thermal 51 | . 27 24 . . . Explosive 21 | . . 2 12 6 1 Electromagnetic 5 | . 5 . . . . Robot Hit Streak 11 | . 11 6 7 6 3 Robot Miss Streak 6 | . 3 4 1 6 3 Penetration Max . | . . . . . . Secondary Targets . | . . . . . . Shots Hit Robots 81 | . 30 24 17 6 4 Core Hits 64 | . 13 15 21 12 3 Critical Kills . | . . . . . . Critical Parts Destroyed . | . . . . . . Critical Strikes 4 | . 3 1 . . . Burn 4 | . 3 1 . . . Melee Attacks . | . . . . . . Impact . | . . . . . . Slashing . | . . . . . . Piercing . | . . . . . . Sneak Attacks . | . . . . . . Combat Hostiles . | . . . . . . Follow-up Attacks . | . . . . . . Damage Inflicted 2158 | . 451 441 885 299 82 Guns 824 | . 406 336 . . 82 Cannons 239 | . . . 176 63 . Explosions 1091 | . 41 105 709 236 . Melee . | . . . . . . Ramming 4 | . 4 . . . . Kinetic 689 | . 183 185 176 63 82 Thermal 369 | . 218 151 . . . Explosive 1050 | . . 105 709 236 . Electromagnetic 46 | . 46 . . . . Impact . | . . . . . . Slashing . | . . . . . . Piercing . | . . . . . . Highest Corruption 9 | . . . 7 7 9 Average Corruption 6 | . . . 6 7 7 Corruption Purged . | . . . . . . Corruption Blocked . | . . . . . . Effects 33 | . . . 3 22 8 Message Errors 12 | . . . . 9 3 Matter Fused 5 | . . . . 3 2 Heat Flow Errors 3 | . . . . 2 1 Energy Discharges 5 | . . . 1 4 . Data Loss (minor) 3 | . . . 1 1 1 Data Loss (major) 1 | . . . . 1 . Misfires 3 | . . . . 2 1 Alerts 1 | . . . 1 . . Overload Shots . | . . . . . . Overflow Damage 16 | . . . 16 . . Projectiles . | . . . . . . Explosions 16 | . . . 16 . . Melee . | . . . . . . Knockbacks . | . . . . . . Impact . | . . . . . . Kinetic . | . . . . . . Secondary . | . . . . . . Self-Inflicted Damage 292 | . 26 63 156 47 . Shots 11 | . 1 2 5 3 . Rammed 1 | . . . . . 1 Targets Rammed 2 | . 1 . . . 1 Kicked 1 | . 1 . . . . Crushed . | . . . . . . Highest Temperature 248 | . 159 201 36 248 124 Average Temperature 56 | . 41 84 14 67 43 Received Heat Transfer 648 | . 87 150 66 45 300 Siege Activations . | . . . . . . Robots Corrupted . | . . . . . . Combat Hostiles . | . . . . . . Parts Fried . | . . . . . . Impact Corruptions . | . . . . . . Robots Melted . | . . . . . . Combat Hostiles . | . . . . . . Parts Melted 3 | . 3 . . . . Heat Transferred 1358 | . 840 518 . . . Parts Sabotaged . | . . . . . . Parts Stolen . | . . . . . . Parts Stripped . | . . . . . . Power Chain Reactions 1 | . 1 . . . . Alert | -11 -10 -10 -9 -9 -9 ------- Run | Yrd Mat Min Mat Min Exi Peak Influence 284 | . 233 162 284 241 . Initial 116 | . . 22 40 116 . Average 116 | . 145 56 217 127 . Maximum Alert Level 1 | . 1 . 1 1 . Low Security (%) 78 | 100 51 100 21 95 . Level 1 21 | . 48 . 78 4 . Level 2 . | . . . . . . Level 3 . | . . . . . . Level 4 . | . . . . . . Level 5 . | . . . . . . High Security . | . . . . . . Max Security . | . . . . . . Squads Dispatched 1 | . . . 1 . . Investigation . | . . . . . . Extermination . | . . . . . . Reinforcement 1 | . . . 1 . . Assault . | . . . . . . Garrison . | . . . . . . Intercept . | . . . . . . Searches Triggered . | . . . . . . Construction Impeded . | . . . . . . Haulers Reinforced . | . . . . . . Active Scanning Responses . | . . . . . . Cargo Convoy Interrupts . | . . . . . . Stealth | -11 -10 -10 -9 -9 -9 --------- Run | Yrd Mat Min Mat Min Exi Distress Signals . | . . . . . . Communications Jammed . | . . . . . . Distress Signals . | . . . . . . Times Spotted 44 | . 11 11 11 3 8 Peak Tracking Total 10 | . 3 4 6 2 10 Tactical Retreats 2 | . 1 1 . . . Traps | -11 -10 -10 -9 -9 -9 ------- Run | Yrd Mat Min Mat Min Exi Traps Triggered . | . . . . . . Indirectly . | . . . . . . Trap Hack Attempts . | . . . . . . Triggered . | . . . . . . Disarmed . | . . . . . . Reprogrammed . | . . . . . . Reused . | . . . . . . Traps Extracted . | . . . . . . Installed . | . . . . . . Triggered . | . . . . . . Machines | -11 -10 -10 -9 -9 -9 ---------- Run | Yrd Mat Min Mat Min Exi Machines Disabled 8 | . 1 2 2 3 . Max in Single Turn 2 | . 1 1 1 2 . Machines Repaired . | . . . . . . Machines Dismantled . | . . . . . . Machines Sabotaged . | . . . . . . Overloaded Fab Kills . | . . . . . . Hacking | -11 -10 -10 -9 -9 -9 --------- Run | Yrd Mat Min Mat Min Exi Machines Accessed 3 | . 2 1 . . . Terminals 2 | . 1 1 . . . Fabricators . | . . . . . . Repair Stations . | . . . . . . Recycling Units 1 | . 1 . . . . Scanalyzers . | . . . . . . Garrison Access . | . . . . . . Total Hacks 7 | . 5 2 . . . Successful 6 | . 4 2 . . . Failed 1 | . 1 . . . . Catastrophic . | . . . . . . Database Lockouts . | . . . . . . Manual . | . . . . . . Terminals 5 | . 3 2 . . . Fabricators . | . . . . . . Repair Stations . | . . . . . . Recycling Units 2 | . 2 . . . . Scanalyzers . | . . . . . . Garrison Access . | . . . . . . Terminal Hacks 4 | . 2 2 . . . Record 1 | . 1 . . . . Dispatch Records 1 | . . 1 . . . Investigation Status 1 | . 1 . . . . Zone Layout 1 | . . 1 . . . Fabricator Hacks . | . . . . . . Repair Station Hacks . | . . . . . . Recycling Unit Hacks 2 | . 2 . . . . Retrieve Matter 1 | . 1 . . . . Retrieve Components 1 | . 1 . . . . Scanalyzer . | . . . . . . Garrison Access Hacks . | . . . . . . Unauthorized Hacks . | . . . . . . Terminals . | . . . . . . Fabricators . | . . . . . . Repair Stations . | . . . . . . Recycling Units . | . . . . . . Scanalyzers . | . . . . . . Garrison Access . | . . . . . . Data Cores Recovered . | . . . . . . Used . | . . . . . . Hacking Detections 2 | . 1 1 . . . Full Trace Events . | . . . . . . Feedback Events . | . . . . . . Feedback Blocked . | . . . . . . Robot Schematics Acquired . | . . . . . . Robots Built . | . . . . . . Authchips . | . . . . . . Time . | . . . . . . Total Robot Build Rating . | . . . . . . Part Schematics Acquired . | . . . . . . Parts Built . | . . . . . . Authchips . | . . . . . . Time . | . . . . . . Total Part Build Rating . | . . . . . . Parts Repaired . | . . . . . . Time . | . . . . . . Parts Recycled . | . . . . . . Recycled Matter . | . . . . . . Retrieved Matter . | . . . . . . Retrieved Components 3 | . 3 . . . . Parts Scanalyzed . | . . . . . . Part Schematics Acquired . | . . . . . . Parts Damaged . | . . . . . . Bothacking | -11 -10 -10 -9 -9 -9 ------------ Run | Yrd Mat Min Mat Min Exi Used RIF Installer . | . . . . . . Robots Hacked . | . . . . . . Non-combat . | . . . . . . Combat . | . . . . . . Robot Hacks Applied . | . . . . . . Relay Couplers Released . | . . . . . . Fabnet Peak Effective % . | . . . . . . Robots Rewired . | . . . . . . Allies Hacked . | . . . . . . Hacks Repelled . | . . . . . . Allies | -11 -10 -10 -9 -9 -9 -------- Run | Yrd Mat Min Mat Min Exi Total Allies . | . . . . . . Largest Group . | . . . . . . Highest-Rated Group . | . . . . . . Highest-Rated Ally . | . . . . . . Total Orders . | . . . . . . Ally Attacks . | . . . . . . Total Damage . | . . . . . . Kills . | . . . . . . Allies Corrupted . | . . . . . . Allies Melted . | . . . . . . Intel | -11 -10 -10 -9 -9 -9 ------- Run | Yrd Mat Min Mat Min Exi Robot Analysis Total . | . . . . . . Derelict Logs Recovered 2 | . . 1 . 1 . Drone Launches . | . . . . . . Drone Recoveries . | . . . . . . Exploration | -11 -10 -10 -9 -9 -9 ------------- Run | Yrd Mat Min Mat Min Exi Turns Passed 2492 | 53 467 760 290 689 233 Spaces Moved 1255 | 43 223 389 185 295 120 Core 19 | 19 . . . . . Treads . | . . . . . . Legs 1225 | 24 223 389 185 295 109 Wheels . | . . . . . . Hover 11 | . . . . . 11 Flight . | . . . . . . Fastest Speed 50 | 50 120 120 120 120 80 Average Speed 141 | 93 120 120 120 188 179 Slowest Speed 190 | 120 120 190 120 190 190 Overloaded Moves . | . . . . . . Propulsion Burnouts . | . . . . . . Robots Hopped . | . . . . . . Cave-ins Triggered . | . . . . . . Exploration Rate (%) 37 | 4 27 84 20 58 30 Regions Visited 5 Branch Regions 3 Pre-discovered Areas . | . . . . . . Known Exits Taken . | . . . . . . Unknown Exits Taken 5 | 1 1 1 1 1 . Scrap Searched 5 | . . 3 . 2 . Spaces Dug . | . . . . . . Terrain Destroyed 88 | . 2 11 38 37 . Melee . | . . . . . . Projectile . | . . . . . . AOE 88 | . 2 11 38 37 . Terrain Rammed . | . . . . . . Walls Destroyed . | . . . . . . Machines Disabled . | . . . . . . Actions | -11 -10 -10 -9 -9 -9 --------- Run | Yrd Mat Min Mat Min Exi Total 1824 | 55 362 636 225 416 130 Wait 422 | . 98 212 15 97 . Move 1250 | 42 222 388 184 294 120 Hop . | . . . . . . Pick Up 28 | 7 6 4 1 9 1 Fast Attach 9 | 1 . 3 5 . . Attach 14 | 5 1 1 1 2 4 Detach . | . . . . . . Swap 10 | . 2 1 2 4 1 Drop 10 | . . 3 3 4 . Fire 79 | . 32 24 14 6 3 Melee . | . . . . . . Ram 1 | . . . . . 1 Kick 1 | . 1 . . . . Crush . | . . . . . . Escape Stasis . | . . . . . . Rewire . | . . . . . . Trap . | . . . . . . Miscellaneous . | . . . . . . Route ------- -11/Scrapyard -10/Materials -10/Mines (discovered 2 exits: [*Mat x2]) -9/Materials -9/Mines (discovered 2 exits: [*Mat] / [*Exi]) -9/Exiles (discovered 1 exit: [*Min]) History --------- Turn | Location | Event 2 | -11/Scrapyard | Discovered new exit (range 16) 54 | -11/Scrapyard | Entered Materials 302 | -10/Materials | Build established: Mutant 341 | -10/Materials | Discovered new exit (range 16) 521 | -10/Materials | Entered Mines 706 | -10/Mines | Learned Materials terminal intel 742 | -10/Mines | Discovered new exit (range 7) 819 | -10/Mines | YI-UF0 nonchalantly dropped a Grenade Launcher on the ground 1250 | -10/Mines | Discovered new exit (range 13) 1257 | -10/Mines | Core integrity fell below 50% 1281 | -10/Mines | Entered Materials 1281 | -9/Materials | Evolved 2 slots: Propulsion x1, Utility x1 1282 | -9/Materials | Loaded intel: 12 terminal locations 1549 | -9/Materials | Lost 3 parts (1n1u1w) 1551 | -9/Materials | Discovered new exit (range 16) 1571 | -9/Materials | Entered Mines 1656 | -9/Mines | Assembled infested the area 1669 | -9/Mines | Build established: Scavenger-Mutant 2016 | -9/Mines | Learned Materials stockpile data 2115 | -9/Mines | Discovered new exit (range 13) 2252 | -9/Mines | Deemed a non-threat by the Exiles lab entrance 2252 | -9/Mines | Discovered new exit (range 5) 2260 | -9/Mines | Entered Exiles 2291 | -9/Exiles | Discovered new exit (range 14) 2342 | -9/Exiles | Met 8R-AWN 2373 | -9/Exiles | Met EX-HEX 2464 | -9/Exiles | Attacked by the Exiles 2480 | -9/Exiles | Core integrity fell below 50% 2486 | -9/Exiles | Core integrity fell below 20% 2493 | -9/Exiles | Destroyed by DAS Turret with DAS Cannon Last Messages --------------- Knocked back. Aluminum Leg destroyed. Penetrated by HV Slug. Critical hit (Destroy). Grenade Launcher destroyed. Hvy. Assault Rifle destroyed. Slammed into UO-OCP(z). Destabilizing: System interference. Structural Scanner temporarily disabled. Structural Scanner destroyed. System corrupted by crushing effect (+2). Penetrated by HV Slug. HV Slug penetrates UO-OCP(z). UO-OCP(z) suffers critical hit (Destroy). UO-OCP(z) destroyed. Acquired 30 matter. Acquired Mak. Power Source. Penetrated by HV Slug. Lgt. Assault Rifle destroyed. Machine disabled. Map ----- +----------------------------------------------------+ | ?????????????????????????????????????????????????? | | ?????????????????????????????????????????????????? | | ?????????????????????????????????????????????????? | | ?????????????????????????????????????????????????? | | ?????????????????????????????????????????????????? | | ?????????????????????????????????????????????????? | | ?????????????????????????????????????????????????? | | ??????????????????????????????????#####??????????? | | ??????????????????????????????????####"""??"?????? | | ?????????????????????????????????? " """ """??? | | ????????????????????????????????? "" " ? | | ??????????????????????????????? " """# | | ?????????????????????????????? " "# | | ?????????????????????????????? " "# | | ??????????????????????????????? "" | | ???????????????????????????????? " | | ??????????????????????????????" | | ??????????????????????????????##""" | | ??????????????????????????????###""" | | ???????????? ? ??????????????###"""" | | ???????????? ""#######?######"" | | ??????????? ##############"""" | | ??????????? ##aaa####"" | | ?????????? """" a | | ?????????? aa! / a | | ?????????? @ a a | | ?????????? % a | | ?????????? " "" """ | | ??????????? ""## ##""" " " ""#" | | ??????????? ""#### ######""" """##"""""" | | ???????????? """"##### ########""""######### | | ???????????? ""???### ##################### | | ???????????? ??????##! "!##?########??????? | | ????????????? ? ???????##" !##???????????????? | | ????????????????????????##" "##???????????????? | | ????????????????????????##!!""!"##???????????????? | | ????????????????????????##########???????????????? | | ????????????????????????##########???????????????? | | ?????????????????????????????????????????????????? | | ?????????????????????????????????????????????????? | | ?????????????????????????????????????????????????? | | ?????????????????????????????????????????????????? | | ?????????????????????????????????????????????????? | | ?????????????????????????????????????????????????? | | ?????????????????????????????????????????????????? | | ?????????????????????????????????????????????????? | | ?????????????????????????????????????????????????? | | ?????????????????????????????????????????????????? | | ?????????????????????????????????????????????????? | | ?????????????????????????????????????????????????? | +----------------------------------------------------+ Best States ------------- Heat Dissipation 28 Energy Generation 14 Energy Capacity 250 Matter Stores 300 Matter Capacity 300 Sight Range 16 Terrain Scan Range 14 Terrain Scan Density 10 Armor Coverage 150 Evasion (%) 55 Salvage Targeting 1 Item Schematics ----------------- None Robot Schematics ------------------ None Fabricated ------------ Nothing Alien Tech Used ----------------- None Achievements -------------- Hey, That's Mine! Challenges ------------ None Game ------ Seed MiningLegLoader Manual? 0 Play Time 00:30:07 Cumulative 13.1 hours Start 2024.04.04 @ 13:39:10 End 2024.04.05 @ 09:53:16 Sessions 3 Manual Loads 0 Difficulty Rogue Special Mode None Game No. 15 Rogue 15 Adventurer 0 Explorer 0 Win Type - Total 0 Types 0/0/0/0/0/0/0/0/0 Lore% 14 Gallery% 20 Achievement% 16 Wizard Run 0 Options --------- Layout 0 ASCII 0 Keyboard 0 Movement Mouse Keybinds 0 Fullscreen 1 Font 18/SmallcapsGlow Map View 76x50 Zoom Use 0% Tactical HUD 0 Map Filters NONE Filters NONE Steam 1 RUN: 24de57bc-182e-4770-8944-9fc35eeeb5dc